fUST/lending_fUST_20250110
["ID","MTS","AMOUNT","RATE_DAILY","PERIOD"]
[348374818,1736478647757,-509.73567633,0.00022867,3]
[348374819,1736478647767,-500.0,0.00022867,3]
[348374820,1736478647776,-500.0,0.00022867,3]
[348374821,1736478647786,-500.0,0.00022867,3]
[348374822,1736478647795,-500.0,0.00022867,3]
[348374823,1736478647804,-500.0,0.00022867,3]
[348374824,1736478647813,-500.0,0.00022867,3]
[348374825,1736478647823,-500.0,0.00022867,3]
[348374826,1736478647832,-500.0,0.00022867,3]
[348374827,1736478647841,-500.0,0.00022867,3]
[348374828,1736478647851,-500.0,0.00022868,3]
[348374829,1736478647861,-788.53089987,0.000229,2]
[348374830,1736478647870,-1000.79,0.00022999,3]
[348374831,1736478647879,-500.0,0.00023093,2]
[348374832,1736478647889,-500.0,0.00023093,3]
[348374833,1736478647898,-443.94758661,0.00023093,3]
[348374834,1736478647909,-500.0,0.00023093,3]
[348374835,1736478647920,-500.0,0.00023093,3]
[348374836,1736478647929,-500.0,0.00023093,3]
[348374837,1736478647938,-500.0,0.00023093,3]
[348374838,1736478647948,-500.0,0.00023093,3]
[348374839,1736478647964,-500.0,0.00023093,3]
[348374840,1736478647975,-500.0,0.00023093,3]
[348374841,1736478647985,-500.0,0.00023093,3]
[348374842,1736478647994,-500.0,0.00023093,3]
[348374843,1736478648004,-500.0,0.00023093,3]
[348374844,1736478648013,-500.0,0.00023093,3]
[348374845,1736478648022,-500.0,0.00023093,3]
[348374846,1736478648032,-500.0,0.00023093,3]
[348374847,1736478648041,-500.0,0.00023093,3]
[348374848,1736478648051,-408.48,0.00023094,3]
[348374849,1736478648060,-500.0,0.00023094,3]
[348374850,1736478648070,-500.0,0.00023094,3]
[348374851,1736478648079,-500.0,0.00023094,3]
[348374852,1736478648088,-500.0,0.00023094,3]
[348374853,1736478648098,-500.0,0.00023094,3]
[348374854,1736478648107,-500.0,0.00023094,3]
[348374855,1736478648116,-161.28688036,0.00023094,3]
[348374856,1736478648125,-514.14,0.00023094,3]
[348374857,1736478648134,-500.0,0.00023094,3]
[348374858,1736478648143,-500.0,0.00023094,3]
[348374859,1736478648153,-160.74,0.00023094,3]
[348374860,1736478648162,-564.75205978,0.00023094,3]
[348374861,1736478648172,-500.0,0.00023094,3]
[348374862,1736478648181,-4670.53,0.00023094,3]
[348374863,1736478648190,-349.47,0.00023094,3]
[348374864,1736478648199,-500.0,0.00023094,3]
[348374865,1736478648212,-472.698765,0.00023094,3]
[348374866,1736478648222,-636.9,0.00023095,3]
[348374867,1736478648232,-500.0,0.00023095,3]
[348374868,1736478648241,-500.0,0.00023095,3]
[348374869,1736478648250,-500.0,0.0002314,3]
[348374870,1736478648260,-500.0,0.00023141,3]
[348374871,1736478648269,-500.0,0.00023141,3]
[348374872,1736478648279,-500.0,0.00023141,3]
[348374873,1736478648288,-500.0,0.00023141,3]
[348374874,1736478648297,-500.0,0.00023141,3]
[348374875,1736478648307,-514.40979127,0.00023141,3]
[348374876,1736478648316,-500.0,0.00023141,3]
[348374877,1736478648325,-500.0,0.00023141,3]
[348374878,1736478648336,-500.0,0.00023141,3]
[348374879,1736478648345,-500.0,0.00023141,3]
[348374880,1736478648355,-500.0,0.00023142,3]
[348374881,1736478648364,-500.0,0.00023146,3]
[348374882,1736478648373,-394.0,0.0002319,2]
[348374883,1736478648383,-1000.79,0.00023273,3]
[348374884,1736478648392,-1265.93,0.00023299,3]
[348374885,1736478648402,-500.0,0.00023299,3]
[348374886,1736478648411,-563.59,0.000233,2]
[348374887,1736478648420,-180.0,0.000233,6]
[348374888,1736478648430,-180.0,0.000233,7]
[348374889,1736478648439,-180.0,0.000233,10]
[348374890,1736478648448,-180.0,0.000233,13]
[348374891,1736478648462,-182.54950611,0.000233,14]
[348374892,1736478648475,-1200.0,0.00023346,2]
[348374893,1736478648488,-151.0,0.00023365,7]
[348374894,1736478648497,-151.0,0.00023365,7]
[348374895,1736478648507,-151.0,0.00023365,7]
[348374896,1736478648517,-263.180568,0.00023365,7]
[348374897,1736478648526,-154.804224,0.00023365,7]
[348374898,1736478648535,-151.0,0.00023365,7]
[348374899,1736478648545,-151.0,0.00023365,7]
[348374900,1736478648555,-151.0,0.00023365,7]
[348374901,1736478648564,-151.0,0.00023365,7]
[348374902,1736478648573,-151.0,0.00023365,7]
[348374903,1736478648583,-210.021157,0.00023365,7]
[348374904,1736478648592,-151.0,0.00023365,7]
[348374905,1736478648601,-153.753426,0.00023365,7]
[348374906,1736478648611,-500.0,0.00023367,2]
[348374907,1736478648620,-150.27,0.00023367,10]
[348374908,1736478648629,-150.27,0.00023367,10]
[348374909,1736478648639,-300.3343836,0.00023367,10]
[348374910,1736478648648,-500.0,0.00023367,2]
[348374911,1736478648657,-500.0,0.00023367,3]
[348374912,1736478648666,-249.54219681,0.00023367,10]
[348374913,1736478648676,-156.60518072,0.00023367,10]
[348374914,1736478648685,-500.0,0.00023367,10]
[348374915,1736478648694,-500.0,0.00023367,10]
[348374916,1736478648705,-150.27,0.00023367,10]
[348374917,1736478648715,-150.27,0.00023367,2]
[348374918,1736478648724,-500.0,0.00023367,3]
[348374919,1736478648733,-500.0,0.00023367,10]
[348374920,1736478648743,-500.0,0.00023367,10]
[348374921,1736478648752,-150.27,0.00023367,2]
[348374922,1736478648762,-500.0,0.00023367,10]
[348374923,1736478648771,-150.27,0.00023367,10]
[348374924,1736478648780,-226.03909207,0.00023367,3]
[348374925,1736478648795,-273.96090793,0.00023367,3]
[348374926,1736478648804,-500.0,0.00023367,3]
[348374927,1736478648813,-500.0,0.00023367,3]
[348374928,1736478648822,-500.0,0.00023367,3]
[348374929,1736478648831,-551.41,0.00023367,3]
[348374930,1736478648841,-500.0,0.00023367,3]
[348374931,1736478648850,-500.0,0.00023367,3]
[348374932,1736478648859,-500.0,0.00023367,3]
[348374933,1736478648868,-500.0,0.00023367,3]
[348374934,1736478648878,-500.0,0.00023367,3]
[348374935,1736478648887,-500.0,0.00023367,3]
[348374936,1736478648896,-624.52,0.00023368,3]
[348374937,1736478648906,-559.0,0.00023368,3]
[348374938,1736478648918,-232.48,0.00023368,3]
[348374939,1736478648927,-500.0,0.00023368,3]
[348374940,1736478648937,-500.0,0.00023368,3]
[348374941,1736478648946,-184.6,0.00023368,3]
[348374942,1736478648957,-484.27,0.00023368,3]
[348374943,1736478648967,-500.0,0.00023368,3]
[348374944,1736478648976,-4670.53,0.00023368,3]
[348374945,1736478648986,-295.66,0.00023368,3]
[348374946,1736478648997,-636.9,0.00023369,3]
[348374947,1736478649007,-500.0,0.00023369,3]
[348374948,1736478649016,-500.0,0.00023369,3]
[348374949,1736478649026,-39335.86918707,0.00023371,10]
[348374950,1736478649038,-17543.83294124,0.00023371,10]
[348374951,1736478649050,-4368.79223339,0.00023371,10]
[348374955,1736478962827,163.88139,0.00013973,2]
[348374959,1736479532127,-165.30444991,0.00021989,2]
[348374960,1736479532249,500.0,0.00022371,120]
[348374961,1736479533002,500.0,0.00022371,120]
[348374962,1736479533783,500.0,0.00022371,120]
[348374963,1736479534542,500.0,0.00022371,120]
[348374964,1736479539207,500.0,0.00022371,120]
[348374965,1736479540000,500.0,0.00022371,120]
[348374966,1736479540953,500.0,0.00022371,120]
[348374967,1736479541670,500.0,0.00022371,120]
[348374968,1736479542435,500.0,0.00022371,120]
[348374969,1736479543186,500.0,0.00022371,120]
[348374970,1736479543932,500.0,0.00022371,120]
[348374971,1736479544683,500.0,0.00022371,120]
[348374972,1736479545455,500.0,0.00022371,120]
[348374973,1736479546221,500.0,0.00022371,120]
[348374974,1736479546965,500.0,0.00022371,120]
[348374975,1736479547713,500.0,0.00022371,120]
[348374976,1736479548471,500.0,0.00022371,120]
[348374977,1736479549213,500.0,0.00022371,120]
[348374978,1736479549953,500.0,0.00022371,120]
[348374979,1736479550729,500.0,0.00022371,120]
[348374980,1736479551501,500.0,0.00022371,120]
[348374981,1736479552295,500.0,0.00022371,120]
[348374982,1736479553057,500.0,0.00022371,120]
[348374983,1736479553824,500.0,0.00022371,120]
[348374984,1736479554593,500.0,0.00022371,120]
[348374985,1736479555474,500.0,0.00022371,120]
[348374986,1736479556275,500.0,0.00022371,120]
[348374987,1736479557019,500.0,0.00022371,120]
[348374988,1736479557760,500.0,0.00022371,120]
[348374989,1736479558519,500.0,0.00022371,120]
[348374990,1736479559271,500.0,0.00022371,120]
[348374991,1736479560020,500.0,0.00022371,120]
[348374992,1736479560774,500.0,0.00022371,120]
[348374993,1736479561581,500.0,0.00022371,120]
[348374994,1736479562324,500.0,0.00022371,120]
[348374995,1736479563086,500.0,0.00022371,120]
[348374996,1736479563831,500.0,0.00022371,120]
[348374997,1736479564635,500.0,0.00022371,120]
[348374998,1736479565395,500.0,0.00022371,120]
[348374999,1736479566156,500.0,0.00022371,120]
[348375000,1736479566943,500.0,0.00022371,120]
[348375001,1736479567710,500.0,0.00022371,120]
[348375002,1736479568468,500.0,0.00022371,120]
[348375003,1736479569252,500.0,0.00022371,120]
[348375004,1736479570006,500.0,0.00022371,120]
[348375005,1736479570764,500.0,0.00022371,120]
[348375006,1736479571645,500.0,0.00022371,120]
[348375007,1736479572399,500.0,0.00022371,120]
[348375008,1736479574241,500.0,0.00022371,120]
[348375009,1736479575518,500.0,0.00022371,120]
[348375010,1736479576306,500.0,0.00022371,120]
[348375011,1736479577071,500.0,0.00022371,120]
[348375012,1736479577912,500.0,0.00022371,120]
[348375013,1736479578741,500.0,0.00022371,120]
[348375014,1736479579509,500.0,0.00022371,120]
[348375015,1736479580264,500.0,0.00022371,120]
[348375016,1736479581045,500.0,0.00022371,120]
[348375017,1736479582172,500.0,0.00022371,120]
[348375018,1736479582924,500.0,0.00022371,120]
[348375019,1736479583731,500.0,0.00022371,120]
[348375020,1736479584522,500.0,0.00022371,120]
[348375021,1736479585283,500.0,0.00022371,120]
[348375022,1736479586066,500.0,0.00022371,120]
[348375023,1736479586814,500.0,0.00022371,120]
[348375024,1736479587930,500.0,0.00022371,120]
[348375025,1736479588685,500.0,0.00022371,120]
[348375026,1736479589428,500.0,0.00022371,120]
[348375027,1736479590225,500.0,0.00022371,120]
[348375028,1736479590987,500.0,0.00022371,120]
[348375029,1736479591754,500.0,0.00022371,120]
[348375030,1736479592519,500.0,0.00022371,120]
[348375031,1736479593306,500.0,0.00022371,120]
[348375032,1736479594094,500.0,0.00022371,120]
[348375033,1736479594866,500.0,0.00022371,120]
[348375034,1736479595955,500.0,0.00022371,120]
[348375035,1736479596734,500.0,0.00022371,120]
[348375036,1736479597514,500.0,0.00022371,120]
[348375037,1736479598272,524.16,0.00022371,120]
[348375039,1736479644132,-758.40072089,0.00021989,2]
[348375040,1736479644157,-533.8087262,0.00021999,3]
[348375041,1736479644184,-1104.60611004,0.00021999,3]
[348375042,1736479645032,5711.32187947,0.0001999,3]
[348375043,1736479647222,-196.34388996,0.00021999,3]
[348375044,1736479647245,-158.0,0.00022,2]
[348375045,1736479647266,-598.691,0.000222,2]
[348375046,1736479647289,-500.0,0.00022271,3]
[348375047,1736479647313,-517.08189234,0.00022271,3]
[348375048,1736479647338,-221.76154267,0.00022271,3]
[348375049,1736479647361,-500.0,0.00022271,3]
[348375050,1736479647387,-515.78573004,0.00022271,3]
[348375051,1736479647409,-500.0,0.00022271,3]
[348375052,1736479647430,-500.0,0.00022272,3]
[348375053,1736479647453,-471.32457676,0.00022272,3]
[348375054,1736479647474,-166.54887173,0.00022272,3]
[348375055,1736479654100,-500.0,0.00022271,3]
[348375056,1736479654125,-182.10584847,0.00022272,3]
[348375057,1736479665418,500.0,0.00022371,120]
[348375061,1736479720374,21025.15742996,0.00017,7]
[348375063,1736479745106,-352.6334,0.00017,7]
[348375064,1736479760129,-67.35118086,0.00017,7]
[348375065,1736479760154,-151.64560958,0.00019,2]
[348375066,1736479760181,-694.20659462,0.00020271,2]
[348375097,1736479832512,-138.2937824,0.00020271,2]
[348375099,1736479832521,-366.03560785,0.00021999,3]
[348375191,1736479838242,-133.96439215,0.00021999,3]
[348375193,1736479838252,-3024.50142234,0.00022,4]
[348375195,1736479838261,-500.0,0.00022272,3]
[348375198,1736479838271,-500.0,0.00022272,3]
[348375200,1736479838281,-429.7,0.00022272,3]
[348375202,1736479838290,-1300.95,0.00022273,3]
[348375203,1736479838301,-500.0,0.00022273,3]
[348375206,1736479838311,-500.0,0.00022545,3]
[348375207,1736479838321,-500.0,0.00022545,3]
[348375209,1736479838330,-500.0,0.00022546,3]
[348375211,1736479838339,-500.0,0.00022546,3]
[348375213,1736479838349,-500.0,0.00022546,3]
[348375215,1736479838358,-1300.95,0.00022547,3]
[348375217,1736479838367,-500.0,0.00022547,3]
[348375219,1736479838376,-500.0,0.00022817,3]
[348375221,1736479838385,-525.22,0.00022818,3]
[348375223,1736479838395,-557.75638418,0.00022818,3]
[348375225,1736479838404,-603.82,0.00022818,3]
[348375227,1736479838414,-493.61726406,0.00022818,3]
[348375229,1736479838427,-12.1305385,0.00022818,3]
[348375233,1736479838437,-155.80023131,0.00022818,3]
[348375236,1736479838446,-2519.07406309,0.00022818,3]
[348375239,1736479838460,-1178.43593691,0.00022818,3]
[348375241,1736479838469,-500.0,0.00022818,3]
[348375243,1736479838479,-500.0,0.00022819,3]
[348375245,1736479838489,-500.0,0.00022819,3]
[348375247,1736479838498,-500.0,0.00022819,2]
[348375249,1736479838508,-500.0,0.00022819,3]
[348375251,1736479838517,-500.0,0.00022819,3]
[348375253,1736479838527,-500.0,0.00022819,3]
[348375254,1736479838536,-500.0,0.00022819,3]
[348375256,1736479838546,-358.45409496,0.00022819,3]
[348375259,1736479838558,-141.54590504,0.00022819,3]
[348375261,1736479838568,-500.0,0.00022819,3]
[348375263,1736479838581,-506.86,0.00022819,3]
[348375265,1736479838590,-500.0,0.00022819,3]
[348375267,1736479838600,-500.0,0.00022819,3]
[348375269,1736479838611,-527.38,0.00022819,3]
[348375271,1736479838620,-500.0,0.0002282,3]
[348375273,1736479838629,-500.0,0.0002282,3]
[348375275,1736479838639,-285.66972953,0.0002282,3]
[348375277,1736479838649,-6084.97482081,0.0002282,2]
[348375279,1736479838661,-1300.95,0.00022821,3]
[348375281,1736479838670,-557.92,0.00022821,3]
[348375283,1736479838680,-917.39,0.00022868,3]
[348375285,1736479838689,-2168.77065796,0.00022912,2]
[348375288,1736479838703,-2831.22934204,0.00022912,2]
[348375290,1736479838712,-29957.03439622,0.00023,2]
[348375292,1736479838722,-6866.81865419,0.00023013,14]
[348375294,1736479838732,-500.0,0.00023091,3]
[348375296,1736479838741,-168.45418903,0.00023092,2]
[348375298,1736479838751,-3697.51,0.00023092,3]
[348375300,1736479838760,-484.61,0.00023093,3]
[348375302,1736479838770,-441.5,0.00023093,3]
[348375304,1736479838780,-500.0,0.00023093,2]
[348375306,1736479838789,-500.0,0.00023093,3]
[348375308,1736479838800,-500.0,0.00023093,3]
[348375310,1736479838813,-609.41,0.00023093,3]
[348375311,1736479838824,-478.93,0.00023093,3]
[348375312,1736479838836,-500.0,0.00023093,3]
[348375313,1736479838845,-500.0,0.00023093,3]
[348375314,1736479838855,-435.89,0.00023093,3]
[348375315,1736479838864,-458.0285647,0.00023093,3]
[348375316,1736479838874,-500.0,0.00023094,3]
[348375317,1736479838883,-500.0,0.00023094,3]
[348375318,1736479838892,-1300.95,0.00023095,3]
[348375319,1736479838902,-917.39,0.00023142,3]
[348375320,1736479838911,-507.23,0.000233,2]
[348375321,1736479838921,-394.0,0.00023307,2]
[348375322,1736479838930,-1200.0,0.00023349,2]
[348375323,1736479838940,-500.0,0.00023365,3]
[348375324,1736479838950,-3697.51,0.00023366,3]
[348375325,1736479838959,-1286.60142338,0.00023367,32]
[348375326,1736479838969,-500.0,0.00023367,2]
[348375327,1736479838979,-500.0,0.00023367,3]
[348375328,1736479838989,-500.0,0.00023367,3]
[348375329,1736479838999,-500.0,0.00023367,3]
[348375330,1736479839008,-500.0,0.00023367,3]
[348375331,1736479839018,-500.0,0.00023368,3]
[348375332,1736479839028,-500.0,0.00023368,3]
[348375333,1736479839037,-1300.95,0.00023369,3]
[348375334,1736479839047,-223867.72655886,0.0002337,10]
[348375452,1736479846362,-3269.02710606,0.0002337,10]
[348375453,1736480010261,163.82671,0.00013973,2]
[348375455,1736480464464,749.57819382,0.00014988,2]
[348375456,1736480464725,749.57819382,0.00014991,2]
[348375457,1736480465006,749.57819382,0.00014994,2]
[348375458,1736480530735,799.2553576,0.00014994,2]
[348375459,1736480531029,799.2553576,0.00014993,2]
[348375460,1736480531318,799.2553576,0.00014998,2]
[348375461,1736480731140,-555.00025134,0.0002127,2]
[348375462,1736480731165,-1930.7403283,0.00021611,2]
[348375463,1736480731189,-574.102,0.000222,2]
[348375464,1736480731214,-1246.06,0.00022546,3]
[348375465,1736480731238,-500.0,0.00022546,3]
[348375466,1736480731261,-163.82671,0.00022759,2]
[348375467,1736480731284,-300.0,0.00022801,2]
[348375468,1736480731306,-913.17778935,0.00022801,2]
[348375470,1736480828100,-207.37678725,0.00022717,2]
[348375471,1736480828121,-546.18228101,0.00022801,2]
[348375472,1736480831084,-261.58081317,0.00022801,2]
[348375473,1736480833109,-2063.23690582,0.00022801,2]
[348375474,1736480833134,-300.0,0.00022801,2]
[348375475,1736480833156,-3220.56195227,0.00022802,2]
[348375476,1736480836097,-450.0,0.00022802,2]
[348375477,1736480836127,-853.11056905,0.00022802,2]
[348375478,1736480841093,-427.84600523,0.00022802,2]
[348375479,1736480950143,-395.6144605,0.00020702,2]
[348376022,1736481038528,-89.56021816,0.00020702,2]
[348376023,1736481038539,-1287.54896163,0.00021817,2]
[348376024,1736481038820,-1504.09645731,0.00021817,2]
[348376025,1736481038835,-1069.66884816,0.00021817,2]
[348376133,1736481040616,-850.2462989,0.00021817,2]
[348376135,1736481040626,-207.37678725,0.00022717,2]
[348376137,1736481040635,-2000.0,0.000228,3]
[348376139,1736481040645,-6486.19512376,0.00022802,2]
[348376141,1736481040655,-509.41372704,0.00022816,3]
[348376143,1736481040665,-505.22254702,0.00022816,3]
[348376145,1736481040675,-502.37473036,0.00022816,3]
[348376147,1736481040685,-500.0,0.00022816,2]
[348376149,1736481040695,-268.53446651,0.00022816,3]
[348376151,1736481040704,-500.0,0.00022816,3]
[348376153,1736481040714,-500.0,0.00022816,3]
[348376155,1736481040723,-500.0,0.00022816,3]
[348376157,1736481040737,-500.0,0.00022816,3]
[348376159,1736481040747,-500.0,0.00022816,3]
[348376161,1736481040757,-500.0,0.00022816,3]
[348376163,1736481040767,-411.77577516,0.00022816,3]
[348376165,1736481040777,-500.0,0.00022816,3]
[348376168,1736481040787,-500.0,0.00022816,3]
[348376170,1736481040796,-500.0,0.00022816,3]
[348376172,1736481040805,-500.0,0.00022816,3]
[348376174,1736481040814,-500.0,0.00022816,3]
[348376176,1736481040823,-611.73,0.00022816,3]
[348376178,1736481040833,-500.0,0.00022816,3]
[348376179,1736481040842,-500.0,0.00022816,3]
[348376181,1736481040851,-500.0,0.00022816,3]
[348376182,1736481040861,-500.0,0.00022816,3]
[348376183,1736481040871,-500.0,0.00022816,3]
[348376186,1736481040880,-168.453,0.00022817,2]
[348376187,1736481040890,-500.0,0.00022817,3]
[348376189,1736481040899,-500.0,0.00022817,3]
[348376191,1736481040909,-500.0,0.00022817,3]
[348376193,1736481040918,-500.0,0.00022817,3]
[348376195,1736481040927,-362.427544,0.00022817,3]
[348376197,1736481040941,-137.572456,0.00022817,3]
[348376199,1736481040951,-633.24,0.00022817,3]
[348376200,1736481040960,-234.8621177,0.00022817,3]
[348376210,1736481043589,-344.31624809,0.00020602,2]
[348376211,1736481043598,-265.1378823,0.00022817,3]
[348376212,1736481043608,-500.0,0.00022817,3]
[348376213,1736481043617,-500.0,0.00022817,3]
[348376214,1736481043627,-500.0,0.00022817,3]
[348376215,1736481043636,-500.0,0.00022817,3]
[348376216,1736481043645,-500.0,0.00022817,3]
[348376217,1736481043655,-500.0,0.00022817,3]
[348376218,1736481043664,-500.0,0.00022817,3]
[348376219,1736481043673,-500.0,0.00022817,3]
[348376220,1736481043682,-553.5,0.00022817,3]
[348376221,1736481043692,-515.45685324,0.00022817,3]
[348376222,1736481043701,-500.0,0.00022817,3]
[348376223,1736481043710,-384.50062945,0.00022817,3]
[348376224,1736481043724,-115.49937055,0.00022817,3]
[348376225,1736481043734,-500.0,0.00022817,3]
[348376226,1736481043743,-500.0,0.00022817,3]
[348376227,1736481043753,-500.0,0.00022817,3]
[348376228,1736481043763,-500.0,0.00022817,3]
[348376229,1736481043773,-1318.68575675,0.00022817,3]
[348376230,1736481043786,-2793.19424325,0.00022817,3]
[348376231,1736481043796,-500.0,0.00022817,3]
[348376232,1736481043806,-560.19,0.00022817,3]
[348376233,1736481043816,-500.0,0.00022817,3]
[348376234,1736481043826,-500.0,0.00022817,3]
[348376235,1736481043836,-500.0,0.00022817,3]
[348376236,1736481043845,-500.0,0.00022817,3]
[348376237,1736481043855,-500.0,0.00022817,3]
[348376238,1736481043865,-500.0,0.00022818,7]
[348376239,1736481043874,-500.0,0.00022818,3]
[348376240,1736481043883,-500.0,0.00022818,3]
[348376241,1736481043893,-359.83,0.00022818,3]
[348376242,1736481043904,-506.14011866,0.00022818,3]
[348376243,1736481043913,-500.0,0.00022818,3]
[348376244,1736481043923,-500.0,0.00022818,3]
[348376245,1736481043933,-500.0,0.00022818,3]
[348376246,1736481043946,-512.91456882,0.00022818,3]
[348376247,1736481043956,-500.0,0.00022818,3]
[348376248,1736481043965,-7823.73106927,0.00022818,3]
[348376249,1736481043978,-1739.26615875,0.00022818,3]
[348376250,1736481043991,-2956.34277198,0.00022818,3]
[348376251,1736481044000,-500.0,0.00022818,3]
[348376252,1736481044011,-1246.06,0.0002282,3]
[348376253,1736481044023,-500.0,0.0002282,3]
[348376254,1736481044033,-5000.0,0.00022912,2]
[348376255,1736481044043,-4642.39096822,0.00022912,2]
[348376262,1736481088717,163.342834,0.00013973,2]
[348376264,1736481696221,170.1411043,0.00025,120]
[348376265,1736481941129,-323.44978577,0.00020812,2]
[348376266,1736481941149,-1782.58097132,0.00021644,2]
[348376268,1736482028094,-753.80357898,0.00021644,2]
[348376269,1736482030135,-845.6154497,0.00021644,2]
[348376270,1736482030158,-574.773,0.000222,2]
[348376271,1736482030179,-160.0,0.00022654,3]
[348376272,1736482030199,-1116.28050704,0.000228,3]
[348376273,1736482030828,163.385265,0.00013973,2]
[348376274,1736482050111,-163.385265,0.00022174,2]
[348376275,1736482050132,-3887.77949296,0.000228,3]
[348376276,1736482050155,-300.0,0.00022814,2]
[348376277,1736482050179,-500.0,0.00022815,3]
[348376278,1736482050201,-500.0,0.00022815,3]
[348376279,1736482050223,-438.64336667,0.00022815,3]
[348376281,1736482146177,-166.43042243,0.00020715,2]
[348376900,1736482238468,-151.84178992,0.00020715,2]
[348376902,1736482238478,-175.0,0.00022814,2]
[348376904,1736482238489,-500.0,0.00022815,2]
[348376906,1736482238499,-500.0,0.00022815,3]
[348376908,1736482238509,-500.0,0.00022815,3]
[348376910,1736482238519,-500.0,0.00022815,3]
[348376912,1736482238535,-604.91,0.00022815,3]
[348376914,1736482238549,-500.0,0.00022815,3]
[348376916,1736482238559,-500.0,0.00022815,3]
[348376918,1736482238568,-500.0,0.00022815,3]
[348376920,1736482238578,-190.58368606,0.00022815,3]
[348376922,1736482238587,-216.42,0.00022815,3]
[348376924,1736482238597,-500.0,0.00022815,3]
[348376925,1736482238606,-500.0,0.00022815,3]
[348376927,1736482238616,-500.0,0.00022815,3]
[348376929,1736482238625,-202.09,0.00022815,3]
[348376931,1736482238635,-500.0,0.00022816,3]
[348376933,1736482238645,-397.2907992,0.00022816,3]
[348376935,1736482238654,-278.04383107,0.00022816,3]
[348376937,1736482238664,-500.0,0.00022816,3]
[348376939,1736482238674,-500.0,0.00022816,3]
[348376941,1736482238684,-11997.71,0.00022816,3]
[348376943,1736482238693,-500.0,0.00022816,3]
[348376945,1736482238703,-500.0,0.00022816,3]
[348376947,1736482238713,-517.59396766,0.00022816,3]
[348376949,1736482238723,-500.0,0.00022816,3]
[348376951,1736482238732,-500.0,0.00022816,3]
[348376953,1736482238741,-506.11985996,0.00022816,3]
[348376955,1736482238751,-500.0,0.00022816,3]
[348376957,1736482238761,-508.45290686,0.00022816,7]
[348376959,1736482238771,-500.0,0.00022816,3]
[348376961,1736482238782,-500.0,0.00022816,3]
[348376963,1736482238791,-3940.55,0.00022816,3]
[348376965,1736482238800,-403.688225,0.00022816,3]
[348376967,1736482238810,-509.975214,0.00022817,3]
[348376969,1736482238820,-619.03,0.00022817,3]
[348376971,1736482238829,-961.47,0.00022818,3]
[348376972,1736482238841,-1142.22,0.00022818,3]
[348376973,1736482238850,-294.64,0.00022818,3]
[348376974,1736482238863,-500.0,0.00022899,3]
[348376975,1736482238872,-4000.0,0.000229,3]
[348376976,1736482238881,-500.0,0.00022911,3]
[348376977,1736482238890,-357.60903178,0.00022912,2]
[348376978,1736482238901,-5000.0,0.00022912,2]
[348376979,1736482238910,-5000.0,0.00022912,2]
[348376981,1736482238920,-5000.0,0.00022912,2]
[348376983,1736482238931,-500.0,0.00022986,3]
[348376985,1736482238942,-20000.0,0.00022987,2]
[348376987,1736482238951,-161.37007988,0.00022999,2]